fUSD/lending_fUSD_20240420
["ID","MTS","AMOUNT","RATE_DAILY","PERIOD"]
[323003222,1713582638501,-502.01350276,0.00015068,2]
[323003223,1713582638510,-500.0,0.00015068,2]
[323003224,1713582638519,-500.0,0.00015068,2]
[323003225,1713582638528,-500.0,0.00015068,2]
[323003226,1713582638538,-501.6531987,0.00015068,2]
[323003227,1713582638547,-500.0,0.00015068,2]
[323003228,1713582638556,-500.0,0.00015068,2]
[323003229,1713582638565,-566.98,0.00015068,2]
[323003230,1713582638575,-500.0,0.00015068,2]
[323003231,1713582638584,-503.17217132,0.00015068,2]
[323003232,1713582638594,-500.0,0.00015068,2]
[323003233,1713582638604,-500.0,0.00015068,2]
[323003234,1713582638613,-500.0,0.00015068,2]
[323003235,1713582638969,-500.0,0.00015068,2]
[323003236,1713582638999,-500.0,0.00015068,2]
[323003237,1713582639009,-753.36,0.00015068,2]
[323003238,1713582639019,-500.0,0.00015068,2]
[323003239,1713582639028,-604.18,0.00015068,2]
[323003240,1713582639038,-500.0,0.00015068,2]
[323003241,1713582639051,-667.45,0.00015068,2]
[323003242,1713582639060,-500.0,0.00015068,2]
[323003243,1713582639069,-500.0,0.00015068,2]
[323003244,1713582639079,-515.16,0.00015068,2]
[323003245,1713582639089,-500.0,0.00015068,2]
[323003246,1713582639100,-500.0,0.00015068,2]
[323003247,1713582639110,-500.0,0.00015068,2]
[323003248,1713582639121,-500.0,0.00015068,2]
[323003249,1713582639130,-500.0,0.00015068,2]
[323003250,1713582639140,-500.0,0.00015068,2]
[323003251,1713582639149,-500.71661214,0.00015068,2]
[323003252,1713582639158,-532.1,0.00015068,2]
[323003253,1713582639168,-877.67,0.00015068,2]
[323003254,1713582639178,-500.0,0.00015068,2]
[323003255,1713582639187,-500.0,0.00015068,2]
[323003256,1713582639196,-500.0,0.00015068,2]
[323003257,1713582639205,-1013.44,0.00015068,2]
[323003258,1713582639215,-500.0,0.00015068,2]
[323003259,1713582639225,-884.2,0.00015068,2]
[323003260,1713582639234,-500.0,0.00015068,2]
[323003261,1713582639244,-551.1,0.00015068,2]
[323003262,1713582639254,-500.0,0.00015068,2]
[323003263,1713582639263,-981.61,0.00015068,2]
[323003264,1713582639273,-500.0,0.00015068,2]
[323003265,1713582639283,-569.46,0.00015068,2]
[323003266,1713582639293,-500.0,0.00015068,2]
[323003267,1713582639302,-500.0,0.00015068,2]
[323003268,1713582639311,-500.5418946,0.00015068,2]
[323003269,1713582639320,-855.55,0.00015068,2]
[323003270,1713582639329,-500.0,0.00015068,2]
[323003271,1713582639338,-500.0,0.00015068,2]
[323003272,1713582639347,-535.76,0.00015068,2]
[323003273,1713582639356,-500.0,0.00015068,2]
[323003274,1713582639365,-500.0,0.00015068,2]
[323003275,1713582639376,-500.0,0.00015068,2]
[323003276,1713582639385,-500.0,0.00015068,2]
[323003277,1713582639395,-500.0,0.00015068,2]
[323003278,1713582639404,-500.0,0.00015068,2]
[323003279,1713582639413,-500.0,0.00015068,2]
[323003280,1713582639422,-953.65,0.00015068,2]
[323003281,1713582639431,-773.86,0.00015068,2]
[323003282,1713582639440,-500.0,0.00015068,2]
[323003283,1713582639449,-500.0,0.00015068,2]
[323003285,1713582639458,-1234.96,0.00015068,2]
[323003286,1713582639467,-602.81,0.00015068,2]
[323003288,1713582639476,-645.4,0.00015068,2]
[323003290,1713582639485,-500.0,0.00015068,2]
[323003291,1713582639495,-500.0,0.00015068,2]
[323003292,1713582639503,-1027.53,0.00015068,2]
[323003293,1713582639512,-500.0,0.00015068,2]
[323003294,1713582639522,-500.0,0.00015068,2]
[323003295,1713582639532,-500.0,0.00015068,2]
[323003296,1713582639541,-500.0,0.00015068,2]
[323003297,1713582639550,-500.0,0.00015068,2]
[323003298,1713582639559,-500.0,0.00015068,2]
[323003299,1713582639568,-500.0,0.00015068,2]
[323003300,1713582639577,-500.0,0.00015068,2]
[323003301,1713582639588,-500.0,0.00015068,2]
[323003302,1713582639597,-675.32,0.00015068,2]
[323003303,1713582639606,-500.0,0.00015068,2]
[323003304,1713582639615,-500.0,0.00015068,2]
[323003305,1713582639626,-500.0,0.00015068,2]
[323003306,1713582639635,-505.17,0.00015068,2]
[323003307,1713582639645,-500.0,0.00015068,2]
[323003308,1713582639655,-500.0,0.00015068,2]
[323003309,1713582639664,-819.88,0.00015068,2]
[323003310,1713582639675,-500.0,0.00015068,2]
[323003311,1713582639685,-500.0,0.00015068,2]
[323003312,1713582639695,-843.67,0.00015068,2]
[323003313,1713582639705,-500.0,0.00015068,2]
[323003314,1713582639714,-500.0,0.00015068,2]
[323003315,1713582639723,-500.0,0.00015068,2]
[323003316,1713582639733,-500.0,0.00015068,2]
[323003317,1713582639743,-500.0,0.00015068,2]
[323003318,1713582639753,-503.41350245,0.00015068,2]
[323003319,1713582639764,-680.71,0.00015068,2]
[323003320,1713582639775,-594.77,0.00015068,2]
[323003321,1713582639785,-500.0,0.00015068,2]
[323003322,1713582639794,-580.55,0.00015068,2]
[323003323,1713582639804,-532.43,0.00015068,2]
[323003324,1713582639814,-877.19,0.00015068,2]
[323003325,1713582639823,-500.0,0.00015068,2]
[323003326,1713582639833,-500.0,0.00015068,2]
[323003327,1713582639842,-500.0,0.00015068,2]
[323003328,1713582639851,-500.0,0.00015068,2]
[323003329,1713582639861,-500.0,0.00015068,2]
[323003330,1713582639872,-651.37,0.00015068,2]
[323003331,1713582639881,-500.0,0.00015068,2]
[323003332,1713582639890,-500.0,0.00015068,2]
[323003333,1713582639901,-500.0,0.00015068,2]
[323003334,1713582639910,-601.65,0.00015068,2]
[323003335,1713582639920,-500.0,0.00015068,2]
[323003336,1713582639929,-500.0,0.00015068,2]
[323003337,1713582639938,-500.0,0.00015068,2]
[323003338,1713582639948,-543.61,0.00015068,2]
[323003339,1713582639957,-1390.09,0.00015068,2]
[323003340,1713582639967,-500.0,0.00015068,2]
[323003341,1713582639976,-500.0,0.00015068,2]
[323003342,1713582639985,-500.0,0.00015068,2]
[323003343,1713582639994,-500.0,0.00015068,2]
[323003344,1713582640004,-173.44205982,0.00015068,2]
[323003345,1713582640013,-795.77,0.00015068,2]
[323003346,1713582640023,-633.7,0.00015068,2]
[323003347,1713582640032,-500.0,0.00015068,2]
[323003348,1713582640042,-613.19,0.00015068,2]
[323003349,1713582640054,-610.87,0.00015068,2]
[323003350,1713582640063,-620.67,0.00015068,2]
[323003351,1713582640072,-500.0,0.00015068,2]
[323003352,1713582640082,-500.0,0.00015068,2]
[323003353,1713582640091,-933.69,0.00015068,2]
[323003354,1713582640100,-500.0,0.00015068,2]
[323003355,1713582640110,-500.0,0.00015068,2]
[323003356,1713582640122,-500.0,0.00015068,2]
[323003357,1713582640132,-500.0,0.00015068,2]
[323003358,1713582640141,-207.30346825,0.00015068,2]
[323003359,1713582640150,-1655.79,0.00015068,2]
[323003360,1713582640160,-644.3,0.00015068,2]
[323003362,1713582640170,-847.98,0.00015068,2]
[323003363,1713582640179,-500.0,0.00015068,2]
[323003364,1713582640189,-500.0,0.00015068,2]
[323003365,1713582640198,-500.0,0.00015068,2]
[323003366,1713582640207,-500.0,0.00015068,2]
[323003367,1713582640217,-1019.64,0.00015068,2]
[323003368,1713582640226,-767.26,0.00015068,2]
[323003369,1713582640235,-500.0,0.00015068,2]
[323003370,1713582640244,-500.0,0.00015068,2]
[323003371,1713582640253,-500.0,0.00015068,2]
[323003372,1713582640262,-589.68,0.00015068,2]
[323003373,1713582640272,-500.0,0.00015068,2]
[323003374,1713582640281,-500.0,0.00015068,2]
[323003375,1713582640290,-500.0,0.00015068,2]
[323003376,1713582640299,-503.39000811,0.00015068,2]
[323003377,1713582640308,-500.0,0.00015068,2]
[323003378,1713582640317,-500.0,0.00015068,2]
[323003379,1713582640326,-500.0,0.00015068,2]
[323003380,1713582640335,-500.0,0.00015068,2]
[323003381,1713582640344,-500.0,0.00015068,2]
[323003382,1713582640354,-557.56765654,0.00015068,2]
[323003383,1713582640363,-500.0,0.00015068,2]
[323003384,1713582640374,-500.0,0.00015068,2]
[323003385,1713582640385,-500.0,0.00015068,2]
[323003386,1713582640395,-500.0,0.00015068,2]
[323003387,1713582640404,-500.0,0.00015068,2]
[323003388,1713582640415,-934.09,0.00015068,2]
[323003389,1713582640424,-500.0,0.00015068,2]
[323003390,1713582640434,-500.0,0.00015068,2]
[323003391,1713582640445,-705.07,0.00015068,2]
[323003392,1713582640456,-500.0,0.00015068,2]
[323003393,1713582640466,-676.89,0.00015068,2]
[323003394,1713582640475,-500.0,0.00015068,2]
[323003395,1713582640484,-1612.64,0.00015068,2]
[323003396,1713582640494,-500.0,0.00015068,2]
[323003397,1713582640504,-795.58,0.00015068,2]
[323003398,1713582640513,-729.78,0.00015068,2]
[323003399,1713582640522,-962.95,0.00015068,2]
[323003400,1713582640532,-500.0,0.00015068,2]
[323003401,1713582640542,-500.0,0.00015068,2]
[323003402,1713582640553,-780.17,0.00015068,2]
[323003403,1713582640564,-500.0,0.00015068,2]
[323003404,1713582640575,-500.0,0.00015068,2]
[323003405,1713582640586,-500.0,0.00015068,2]
[323003406,1713582640597,-500.0,0.00015068,2]
[323003407,1713582640607,-1987.95,0.00015068,2]
[323003408,1713582640616,-500.0,0.00015068,2]
[323003409,1713582640627,-500.0,0.00015068,2]
[323003410,1713582640636,-503.45062567,0.00015068,2]
[323003411,1713582640645,-500.0,0.00015068,2]
[323003412,1713582640655,-703.43,0.00015068,2]
[323003413,1713582640665,-606.12,0.00015068,2]
[323003414,1713582640674,-673.25,0.00015068,2]
[323003415,1713582640683,-500.0,0.00015068,2]
[323003416,1713582640693,-927.5,0.00015068,2]
[323003417,1713582640702,-501.56451484,0.00015068,2]
[323003418,1713582640711,-722.48,0.00015068,2]
[323003419,1713582640720,-500.0,0.00015068,2]
[323003420,1713582640729,-795.46,0.00015068,2]
[323003421,1713582640739,-500.0,0.00015068,2]
[323003422,1713582640749,-1312.15,0.00015068,2]
[323003423,1713582640758,-1093.08,0.00015068,2]
[323003424,1713582640768,-1155.24,0.00015068,2]
[323003425,1713582640777,-873.13,0.00015068,2]
[323003426,1713582640787,-500.0,0.00015068,2]
[323003427,1713582640797,-1095.93,0.00015068,2]
[323003428,1713582640806,-500.0,0.00015068,2]
[323003429,1713582640817,-500.0,0.00015068,2]
[323003430,1713582640827,-500.73384435,0.00015068,2]
[323003431,1713582640836,-500.0,0.00015068,2]
[323003432,1713582640846,-500.0,0.00015068,2]
[323003433,1713582640855,-500.0,0.00015068,2]
[323003434,1713582640867,-500.0,0.00015068,2]
[323003435,1713582640877,-560.78,0.00015068,2]
[323003436,1713582640886,-500.0,0.00015068,2]
[323003437,1713582640896,-500.0,0.00015068,2]
[323003438,1713582640906,-598.07,0.00015068,2]
[323003439,1713582640917,-500.0,0.00015068,2]
[323003440,1713582640926,-1397.23,0.00015068,2]
[323003441,1713582640936,-500.0,0.00015068,2]
[323003442,1713582640945,-500.0,0.00015068,2]
[323003443,1713582640955,-500.0,0.00015068,2]
[323003444,1713582640965,-652.3,0.00015068,2]
[323003445,1713582640973,-500.0,0.00015068,2]
[323003446,1713582640982,-500.0,0.00015068,2]
[323003447,1713582640992,-500.0,0.00015068,2]
[323003448,1713582641002,-500.0,0.00015068,2]
[323003449,1713582641011,-500.0,0.00015068,2]
[323003450,1713582641021,-589.05,0.00015068,2]
[323003451,1713582641031,-801.74,0.00015068,2]
[323003452,1713582641040,-500.0,0.00015068,2]
[323003453,1713582641050,-500.0,0.00015068,2]
[323003454,1713582641061,-870.98,0.00015068,2]
[323003455,1713582641070,-848.0,0.00015068,2]
[323003456,1713582641079,-500.0,0.00015068,2]
[323003457,1713582641088,-667.47,0.00015068,2]
[323003458,1713582641098,-500.0,0.00015068,2]
[323003459,1713582641107,-500.0,0.00015068,2]
[323003460,1713582641116,-500.0,0.00015068,2]
[323003461,1713582641126,-1050.11,0.00015068,2]
[323003462,1713582641135,-500.0,0.00015068,2]
[323003463,1713582641145,-1100.76,0.00015068,2]
[323003464,1713582641154,-500.0,0.00015068,2]
[323003465,1713582641163,-503.26473158,0.00015068,2]
[323003466,1713582641172,-500.0,0.00015068,2]
[323003467,1713582641182,-500.0,0.00015068,2]
[323003468,1713582641191,-500.0,0.00015068,2]
[323003469,1713582641200,-500.0,0.00015068,2]
[323003470,1713582641209,-500.0,0.00015068,2]
[323003471,1713582641217,-958.32,0.00015068,2]
[323003472,1713582641227,-707.08,0.00015068,2]
[323003473,1713582641236,-500.0,0.00015068,2]
[323003474,1713582641246,-557.70288044,0.00015068,2]
[323003475,1713582641256,-185.75316677,0.00015068,2]
[323003476,1713582641266,-500.0,0.00015068,2]
[323003477,1713582641275,-500.0,0.00015068,2]
[323003478,1713582641285,-500.0,0.00015068,2]
[323003479,1713582641294,-500.0,0.00015068,2]
[323003480,1713582641305,-684.59,0.00015068,2]
[323003481,1713582641315,-500.0,0.00015068,2]
[323003482,1713582641326,-1011.65,0.00015068,2]
[323003483,1713582641336,-523.76,0.00015068,2]
[323003484,1713582641347,-500.0,0.00015068,2]
[323003485,1713582641358,-1757.54,0.00015068,2]
[323003486,1713582641369,-648.08,0.00015068,2]
[323003487,1713582641378,-658.63,0.00015068,2]
[323003488,1713582641387,-500.0,0.00015068,2]
[323003489,1713582641396,-595.06,0.00015068,2]
[323003490,1713582641406,-500.0,0.00015068,2]
[323003491,1713582641415,-1353.09,0.00015068,2]
[323003492,1713582641424,-500.0,0.00015068,2]
[323003493,1713582641434,-911.43,0.00015068,2]
[323003494,1713582641443,-500.0,0.00015068,2]
[323003495,1713582641453,-500.0,0.00015068,2]
[323003496,1713582641463,-594.52,0.00015068,2]
[323003497,1713582641473,-500.0,0.00015068,2]
[323003498,1713582641482,-642.25,0.00015068,2]
[323003499,1713582641491,-500.0,0.00015068,2]
[323003500,1713582641500,-500.0,0.00015068,2]
[323003501,1713582641509,-500.0,0.00015068,2]
[323003502,1713582641518,-500.38629608,0.00015068,2]
[323003503,1713582641527,-678.3,0.00015068,2]
[323003504,1713582641536,-500.0,0.00015068,2]
[323003505,1713582641545,-500.0,0.00015068,2]
[323003506,1713582641555,-500.0,0.00015068,2]
[323003507,1713582641564,-500.0,0.00015068,2]
[323003508,1713582641573,-325.24389988,0.00015068,2]
[323003509,1713582641582,-521.47,0.00015068,2]
[323003510,1713582641592,-537.5853154,0.00015068,2]
[323003511,1713582641601,-904.04,0.00015068,2]
[323003512,1713582641610,-529.53,0.00015068,2]
[323003513,1713582641620,-620.41,0.00015068,2]
[323003514,1713582641632,-1157.43,0.00015068,2]
[323003515,1713582641641,-500.0,0.00015068,2]
[323003516,1713582641651,-500.0,0.00015068,2]
[323003517,1713582641660,-500.0,0.00015068,2]
[323003518,1713582641670,-500.0,0.00015068,2]
[323003519,1713582641680,-500.0,0.00015068,2]
[323003520,1713582641689,-500.0,0.00015068,2]
[323003521,1713582641698,-500.0,0.00015068,2]
[323003522,1713582641707,-500.0,0.00015068,2]
[323003523,1713582641716,-500.0,0.00015068,2]
[323003524,1713582641726,-500.0,0.00015068,2]
[323003525,1713582641735,-500.0,0.00015068,2]
[323003526,1713582641744,-704.01,0.00015068,2]
[323003527,1713582641754,-500.0,0.00015068,2]
[323003528,1713582641763,-500.0,0.00015068,2]
[323003529,1713582641773,-500.0,0.00015068,2]
[323003530,1713582641783,-1077.18,0.00015068,2]
[323003531,1713582641794,-500.0,0.00015068,2]
[323003532,1713582641804,-566.66,0.00015068,2]
[323003533,1713582641814,-500.0,0.00015068,2]
[323003534,1713582641825,-500.0,0.00015068,2]
[323003535,1713582641835,-500.0,0.00015068,2]
[323003536,1713582641845,-500.0,0.00015068,2]
[323003537,1713582641855,-500.0,0.00015068,2]
[323003538,1713582641864,-503.37888612,0.00015068,2]
[323003539,1713582641877,-792.6,0.00015068,2]
[323003540,1713582641886,-567.22,0.00015068,2]
[323003541,1713582641896,-577.62,0.00015068,2]
[323003542,1713582641907,-500.0,0.00015068,2]
[323003543,1713582641917,-227.42947541,0.00015068,2]
[323003544,1713582641926,-500.0,0.00015068,2]
[323003545,1713582641936,-500.0,0.00015068,2]
[323003546,1713582641947,-707.37,0.00015068,2]
[323003547,1713582641957,-777.91,0.00015068,2]
[323003548,1713582641966,-500.0,0.00015068,2]
[323003549,1713582641975,-500.0,0.00015068,2]
[323003550,1713582641985,-987.74,0.00015068,2]
[323003551,1713582641994,-600.88,0.00015068,2]
[323003552,1713582642004,-500.0,0.00015068,2]
[323003553,1713582642014,-734.54,0.00015068,2]
[323003554,1713582642023,-500.0,0.00015068,2]
[323003555,1713582642033,-500.0,0.00015068,2]
[323003556,1713582642043,-500.0,0.00015068,2]
[323003557,1713582642055,-518.0486833,0.00015068,2]
[323003558,1713582642065,-901.17,0.00015068,2]
[323003559,1713582642074,-593.13,0.00015068,2]
[323003560,1713582642083,-500.0,0.00015068,2]
[323003561,1713582642094,-500.0,0.00015068,2]
[323003562,1713582642102,-500.0,0.00015068,2]
[323003563,1713582642112,-614.93,0.00015068,2]
[323003564,1713582642124,-529.7,0.00015068,2]
[323003565,1713582642135,-500.0,0.00015068,2]
[323003566,1713582642144,-500.0,0.00015068,2]
[323003567,1713582642154,-884.47,0.00015068,2]
[323003568,1713582642163,-510.14,0.00015068,2]
[323003569,1713582642173,-585.83,0.00015068,2]
[323003570,1713582642182,-500.0,0.00015068,2]
[323003571,1713582642191,-892.06,0.00015068,2]
[323003572,1713582642201,-500.0,0.00015068,2]
[323003573,1713582642210,-500.0,0.00015068,2]
[323003574,1713582642220,-571.18,0.00015068,2]
[323003575,1713582642230,-500.0,0.00015068,2]
[323003576,1713582642239,-843.54,0.00015068,2]
[323003577,1713582642248,-500.0,0.00015068,2]
[323003578,1713582642257,-500.0,0.00015068,2]
[323003579,1713582642267,-519.66,0.00015068,2]
[323003580,1713582642276,-500.0,0.00015068,2]
[323003581,1713582642285,-500.0,0.00015068,2]
[323003582,1713582642295,-967.06,0.00015068,2]
[323003583,1713582642304,-822.35,0.00015068,2]
[323003584,1713582642314,-500.0,0.00015068,2]
[323003585,1713582642323,-875.55,0.00015068,2]
[323003586,1713582642332,-500.0,0.00015068,2]
[323003587,1713582642342,-1309.36,0.00015068,2]
[323003588,1713582642351,-627.13,0.00015068,2]
[323003589,1713582642361,-500.0,0.00015068,2]
[323003590,1713582642370,-675.32,0.00015068,2]
[323003591,1713582642382,-502.40326672,0.00015068,2]
[323003592,1713582642392,-1153.24,0.00015068,2]
[323003593,1713582642402,-1592.51,0.00015068,2]
[323003594,1713582642411,-500.0,0.00015068,2]
[323003595,1713582642421,-500.0,0.00015068,2]
[323003596,1713582642430,-500.0,0.00015068,2]
[323003597,1713582642443,-500.0,0.00015068,2]
[323003598,1713582642453,-500.0,0.00015068,2]
[323003599,1713582642462,-500.0,0.00015068,2]
[323003600,1713582642471,-500.0,0.00015068,2]
[323003601,1713582642482,-500.0,0.00015068,2]
[323003603,1713582642491,-519.43,0.00015068,2]
[323003605,1713582642500,-504.25993276,0.00015068,2]
[323003607,1713582642509,-1100.37,0.00015068,2]
[323003608,1713582642520,-500.0,0.00015068,2]
[323003609,1713582642531,-500.0,0.00015068,2]
[323003610,1713582642542,-500.0,0.00015068,2]
[323003611,1713582642553,-500.0,0.00015068,2]
[323003612,1713582642564,-500.0,0.00015068,2]
[323003613,1713582642575,-500.0,0.00015068,2]
[323003614,1713582642587,-500.0,0.00015068,2]
[323003615,1713582642597,-500.0,0.00015068,2]
[323003616,1713582642606,-888.88,0.00015068,2]
[323003618,1713582642616,-1129.97,0.00015068,2]
[323003620,1713582642628,-500.0,0.00015068,2]
[323003622,1713582642638,-500.0,0.00015068,2]
[323003624,1713582642646,-500.0,0.00015068,2]
[323003626,1713582642655,-500.0,0.00015068,2]
[323003628,1713582642664,-498.49060005,0.00015068,2]
[323003629,1713582642674,-500.0,0.00015068,2]
[323003632,1713582642683,-527.27,0.00015068,2]
[323003634,1713582642693,-501.82433041,0.00015068,2]
[323003636,1713582642702,-548.31,0.00015068,2]
[323003637,1713582642711,-1788.33,0.00015068,2]
[323003639,1713582642721,-503.31931399,0.00015068,2]
[323003642,1713582642731,-501.71,0.00015068,2]
[323003645,1713582642740,-500.0,0.00015068,2]
[323003647,1713582642750,-1396.95,0.00015068,2]
[323003648,1713582642759,-672.12,0.00015068,2]
[323003649,1713582642770,-594.01,0.00015068,2]
[323003650,1713582642779,-500.0,0.00015068,2]
[323003651,1713582642789,-500.0,0.00015068,2]
[323003652,1713582642799,-500.0,0.00015068,2]
[323003653,1713582642809,-1946.95,0.00015068,2]
[323003654,1713582642818,-150.0,0.00015068,2]
[323003655,1713582642828,-504.94890668,0.00015068,2]
[323003656,1713582642838,-500.0,0.00015068,2]
[323003657,1713582642847,-500.0,0.00015068,2]
[323003658,1713582642857,-500.0,0.00015068,2]
[323003659,1713582642866,-500.0,0.00015068,2]
[323003660,1713582642878,-505.02589149,0.00015068,2]
[323003661,1713582642887,-1068.39,0.00015068,2]
[323003662,1713582642897,-500.0,0.00015068,2]
[323003663,1713582642907,-593.43,0.00015068,2]
[323003664,1713582642918,-500.0,0.00015068,2]
[323003665,1713582642928,-500.0,0.00015068,2]
[323003666,1713582642939,-533.66,0.00015068,2]
[323003667,1713582642949,-500.0,0.00015068,2]
[323003668,1713582642959,-1222.24,0.00015068,2]
[323003669,1713582642969,-500.0,0.00015068,2]
[323003670,1713582642979,-502.37326379,0.00015068,2]
[323003671,1713582642989,-500.0,0.00015068,2]
[323003672,1713582642999,-500.0,0.00015068,2]
[323003673,1713582643010,-1734.62,0.00015068,2]
[323003674,1713582643020,-500.0,0.00015068,2]
[323003675,1713582643029,-500.0,0.00015068,2]
[323003676,1713582643041,-500.0,0.00015068,2]
[323003677,1713582643055,-500.0,0.00015068,2]
[323003678,1713582643065,-767.54,0.00015068,2]
[323003679,1713582643326,-500.0,0.00015068,2]
[323003680,1713582643336,-500.0,0.00015068,2]
[323003681,1713582643346,-500.0,0.00015068,2]
[323003682,1713582643355,-1715.73,0.00015068,2]
[323003683,1713582643365,-500.0,0.00015068,2]
[323003684,1713582643375,-500.0,0.00015068,2]
[323003685,1713582643384,-500.0,0.00015068,2]
[323003686,1713582643394,-501.87680403,0.00015068,2]
[323003687,1713582643403,-500.0,0.00015068,2]
[323003688,1713582643413,-869.75,0.00015068,2]
[323003689,1713582643422,-1931.08,0.00015068,2]
[323003690,1713582643432,-581.95,0.00015068,2]
[323003691,1713582643441,-500.0,0.00015068,2]
[323003693,1713582643450,-339.38374954,0.00015068,2]
[323003694,1713582643460,-588.1,0.00015068,2]
[323003696,1713582643469,-1478.15,0.00015068,2]
[323003697,1713582643479,-519.14188584,0.00015068,2]
[323003698,1713582643489,-1083.3,0.00015068,2]
[323003699,1713582643498,-500.0,0.00015068,2]
[323003700,1713582643509,-500.0,0.00015068,2]
[323003701,1713582643520,-500.0,0.00015068,2]
[323003702,1713582643530,-500.0,0.00015068,2]
[323003703,1713582643540,-500.0,0.00015068,2]
[323003704,1713582643550,-500.0,0.00015068,2]
[323003705,1713582643559,-978.15,0.00015068,2]
[323003706,1713582643569,-696.87,0.00015068,2]
[323003707,1713582643579,-500.0,0.00015068,2]
[323003708,1713582643588,-500.0,0.00015068,2]
[323003709,1713582643597,-1951.52,0.00015068,2]
[323003710,1713582643608,-826.6,0.00015068,2]
[323003711,1713582643619,-500.0,0.00015068,2]
[323003712,1713582643631,-506.43634044,0.00015068,2]
[323003713,1713582643641,-500.0,0.00015068,2]
[323003714,1713582643650,-338.56956534,0.00015068,2]
[323003715,1713582643661,-500.0,0.00015068,2]
[323003716,1713582643670,-500.0,0.00015068,2]
[323003717,1713582643680,-500.0,0.00015068,2]
[323003718,1713582643689,-632.02,0.00015068,2]
[323003719,1713582643700,-788.11,0.00015068,2]
[323003720,1713582643710,-1359.54,0.00015068,2]
[323003721,1713582643720,-500.0,0.00015068,2]
[323003722,1713582643729,-500.0,0.00015068,2]
[323003723,1713582643739,-500.0,0.00015068,2]
[323003724,1713582643749,-1198.29,0.00015068,2]
[323003725,1713582643758,-500.0,0.00015068,2]
[323003726,1713582643768,-500.0,0.00015068,2]
[323003727,1713582643777,-500.0,0.00015068,2]
[323003728,1713582643787,-500.0,0.00015068,2]
[323003729,1713582643796,-1166.42,0.00015068,2]
[323003730,1713582643806,-539.40637323,0.00015068,2]
[323003731,1713582643816,-530.37,0.00015068,2]
[323003732,1713582643826,-500.0,0.00015068,2]
[323003733,1713582643836,-500.0,0.00015068,2]
[323003734,1713582643846,-500.0,0.00015068,2]
[323003735,1713582643855,-713.05,0.00015068,2]
[323003736,1713582643865,-1853.05,0.00015068,2]
[323003737,1713582643875,-1559.67,0.00015068,2]
[323003738,1713582643884,-500.0,0.00015068,2]
[323003739,1713582643893,-564.9,0.00015068,2]
[323003740,1713582643902,-500.0,0.00015068,2]
[323003741,1713582643912,-570.12,0.00015068,2]
[323003742,1713582643922,-500.0,0.00015068,2]
[323003743,1713582643931,-500.0,0.00015068,2]
[323003744,1713582643941,-500.0,0.00015068,2]
[323003745,1713582643950,-1641.91,0.00015068,2]
[323003746,1713582643960,-500.0,0.00015068,2]